Cogmind - Beta 16 @@@ ROGUE MODE // 2025.10.28 @ 16:11:19 Player: Shrewd Result: Destroyed by X-72 Disruptor with Arc Projector Performance ------------- Evolutions (5) 2500 Regions Visited (8) 1600 Robots Destroyed (78) 390 Value Destroyed (2303) 2303 Prototype IDs (6) 120 Alien Tech Used (0) 0 Bonus (500) 500 TOTAL SCORE: 7413 Bonus ------- Entered DSFs 500 Cogmind --------- Core Integrity 0/1000 Matter 242/300 Energy 68/100 System Corruption 1% Temperature Warm (193) Movement Core (50) Location -5/Factory Parts ------- > --- POWER (2) -------- (None) > --- PROPULSION (4) --- (None) > --- UTILITY (8) ------ (None) > --- WEAPON (3) ------- (None) > --- INVENTORY (5) ---- Micro Fission Core Improved Kinecellerator Long-range Proton Cannon Great Maul Peak State ------------ > --- POWER ------------ Hybrid Fission Core Hybrid Fission Core > --- PROPULSION ------- Armored Treads Improved Medium Treads Improved Medium Treads Improved Medium Treads > --- UTILITY ---------- Visual Processing Unit Target Analyzer Weapon Cycler Weapon Cycler Phase Shifter Hardened Heavy Armor Plating > --- WEAPON ----------- Heavy Plasma Cannon Heavy Plasma Cannon Heavy Plasma Cannon > --- INVENTORY -------- Armored Treads Improved Medium Treads Heavy Plasma Cannon Great Maul [Rating: 70] Favorites ----------- Power Hybrid Fission Core Engine Light Ion Engine Power Core Hybrid Fission Core Reactor Light Antimatter Reactor Propulsion Aluminum Leg Treads Improved Medium Treads Leg Aluminum Leg Wheel Wheel Hover Unit Gravmag Array Flight Unit Improved Flight Unit Utility Visual Processing Unit Device Weapon Cycler Storage Small Storage Unit Processor Visual Processing Unit Hackware Hacking Suite Protection Hardened Heavy Armor Plating Weapon Heavy Plasma Cannon Energy Gun EM Pulse Gun Energy Cannon Heavy Plasma Cannon Ballistic Gun Gauss Rifle Launcher Improved Grenade Launcher Special Weapon Mining Laser Impact Weapon Great Maul Slashing Weapon Mining Claw Special Melee Weapon Improved Datajack Build | -11 -10 -10 -9 -8 -7 -6 -6 -5 ------- Run | Yrd Mat Min Mat Mat Fac Fac DSF Fac Slots Evolved 10 | . . . 2 2 2 2 . 2 Power 1 | . . . . . . 1 . . Propulsion 2 | . . . 1 1 . . . . Utility 6 | . . . 1 1 2 1 . 1 Weapon 1 | . . . . . . . . 1 Parts Attached 116 | 2 2 7 8 30 14 . 22 31 Power 16 | . . 1 . 4 2 . 3 6 Engine 4 | . . 1 . 2 1 . . . Core 11 | . . . . 2 1 . 3 5 Reactor 1 | . . . . . . . . 1 Propulsion 33 | . . 2 3 10 5 . 8 5 Treads 8 | . . . . 2 . . 6 . Leg 5 | . . . . 1 . . . 4 Wheel 6 | . . . . 4 1 . . 1 Hover 2 | . . . . . . . 2 . Flight 12 | . . 2 3 3 4 . . . Utility 40 | 1 2 2 2 10 5 . 7 11 Device 17 | 1 . 2 . 4 2 . 3 5 Storage 6 | . 2 . 1 1 . . 1 1 Processor 13 | . . . 1 3 2 . 2 5 Hackware 1 | . . . . . 1 . . . Protection 3 | . . . . 2 . . 1 . Artifact . | . . . . . . . . . Weapon 27 | 1 . 2 3 6 2 . 4 9 Energy Gun 9 | 1 . . 2 4 . . . 2 Energy Cannon 11 | . . . . . . . 4 7 Ballistic Gun 1 | . . . . 1 . . . . Ballistic Cannon . | . . . . . . . . . Launcher 1 | . . . . 1 . . . . Special Weapon 1 | . . 1 . . . . . . Impact Weapon 1 | . . . . . 1 . . . Slashing Weapon 1 | . . . . . 1 . . . Piercing Weapon . | . . . . . . . . . Special Melee Weapon 2 | . . 1 1 . . . . . Unidentified Prototypes 6 | . . 1 1 2 1 . . 1 Parts Lost 53 | . . . 1 19 3 . 4 26 Power 5 | . . . . 2 1 . . 2 Propulsion 20 | . . . 1 9 1 . . 9 Utility 15 | . . . . 4 1 . 3 7 Weapon 13 | . . . . 4 . . 1 8 Highest Loss Streak 12 | . . . 1 6 2 . 2 12 To Critical Strikes 2 | . . . . 1 . . . 1 Average Backups 7 | 6 4 7 4 10 2 3 3 7 Power 1 | 1 1 1 1 2 . . . 1 Propulsion 1 | 4 1 1 1 . . 3 1 1 Utility 1 | . . 2 1 3 . . . 1 Weapon 2 | 1 2 1 1 3 . . 1 3 Tool/Special . | . . . . . . . . . Unused Backups 35 | 8 . 5 2 8 4 . 5 3 Power 4 | 1 . . . 2 . . . 1 Propulsion 10 | 5 . . . . . . 5 . Utility 14 | 1 . 4 1 4 3 . . 1 Weapon 6 | 1 . 1 . 2 1 . . 1 Tool/Special 1 | . . . 1 . . . . . Average Slot Usage (%) 77 | . 99 99 88 80 25 60 68 77 Engine 4 | . 14 14 11 2 . 6 . . Core 5 | . . . . 6 2 . 10 9 Treads 4 | . . . . 1 . . 16 7 Leg 6 | . 28 24 . 3 . . . . Wheel 3 | . . . . 8 2 . . 2 Flight 5 | . . 3 28 9 5 26 1 . Device 10 | . 14 15 15 11 4 6 8 9 Storage 6 | . 13 12 2 10 . . . 4 Processor 9 | . . . 8 8 3 6 8 22 Energy Gun 7 | . 28 24 1 8 . . . . Energy Cannon 4 | . . . . . . . 9 14 Ballistic Gun 1 | . . . . 5 . . . . Peak Build Rating 70 | 9 9 19 29 38 34 34 66 70 Average Rating 31 | 8 8 11 21 27 8 34 49 57 On Entrance 22 | 6 9 9 19 29 1 34 34 64 Avg Prop Armor Cover (%) 12 | . . . . 8 25 . . . Naked Turns 99 | . . . . 7 91 . . 1 Heaviest Build 114 | 13 18 18 15 114 17 17 59 85 Greatest Support 120 | 20 20 20 15 30 24 24 120 110 Greatest Overweight (x) 22 | . . 3 . 11 2 . 1 22 Average Overweight (x) . | . . . . 2 . . . 1 Largest Inventory Capacity 25 | 8 10 10 8 25 5 5 5 15 Average Capacity 11 | 8 8 9 5 16 5 5 5 14 Most Carried 17 | 7 6 10 8 17 5 3 5 15 Average Carried 7 | 6 4 7 4 10 2 3 3 8 Final Capacity 10 | 8 10 5 8 5 5 5 5 5 Final Carried 8 | 4 6 4 8 5 3 3 5 4 Class Distribution -------------------- 59% | Mutant 15% | Scavenger-Mutant 13% | Scavenger-Gunner 6% | Sprinter 3% | Gunner Dominant Class ---------------- Mutant | -10/Materials Mutant | -10/Mines Mutant | -9/Materials Mutant | -8/Materials Mutant | -7/Factory Mutant | -6/Factory Mutant | -6/DSF Scavenger-Gunner | -5/Factory Resources | -11 -10 -10 -9 -8 -7 -6 -6 -5 ----------- Run | Yrd Mat Min Mat Mat Fac Fac DSF Fac Matter Collected 1888 | 230 10 133 . 599 30 . 234 652 Remotely . | . . . . . . . . . Salvage Created 2674 | 135 148 48 . 772 30 . 374 1167 Parts 167 | 11 9 9 . 57 1 . 21 59 Haulers Intercepted 2 | . . . . 2 . . . . Recyclers Shooed 5 | 1 . . . 4 . . . . Parts Field Recycled 1 | . . . . 1 . . . . Retrieved Matter 5 | . . . . 5 . . . . Parts Self-Destructed . | . . . . . . . . . Prevented . | . . . . . . . . . Parts Restored . | . . . . . . . . . Kills | -11 -10 -10 -9 -8 -7 -6 -6 -5 ------- Run | Yrd Mat Min Mat Mat Fac Fac DSF Fac Combat Hostiles Destroyed 52 | . 3 3 . 18 . . 10 18 Guns 13 | . 3 . . 10 . . . . Cannons 21 | . . . . . . . 8 13 AOE 10 | . . 3 . 7 . . . . Classes Destroyed 16 | 2 1 . . 8 1 . 2 2 Worker 4 | . . . . 3 . . . 1 Builder 5 | . . . . 2 . . . 3 Tunneler 4 | 2 . 1 . . . . . 1 Hauler 2 | . . . . 2 . . . . Recycler 4 | 1 1 . . 1 . . . 1 Mechanic 1 | . . . . . 1 . . . Operator 1 | . . . . . . . . 1 Watcher 5 | . . . . 1 . . . 4 Swarmer 20 | . 3 3 . 8 . . 2 4 Cutter 6 | . . . . 2 . . 4 . Grunt 11 | . . . . 4 . . . 7 Sentry 3 | . . . . 3 . . . . Specialist 2 | . . . . . . . 2 . Hunter 7 | . . . . 1 . . 1 5 Programmer 2 | . . . . . . . . 2 Heavy 1 | . . . . . . . 1 . Best Kill Streak 6 | 2 4 3 . 6 1 . 3 5 Combat Bots Only 4 | . 3 3 . 4 . . 3 4 Max Kills in Single Turn 3 | 1 1 3 . 3 1 . 1 3 Gunslinging . | . . . . . . . . . Exploded 3 | . . 3 . 2 . . . . Melee . | . . . . . . . . . Uniques/NPCs Destroyed . | . . . . . . . . . Combat | -11 -10 -10 -9 -8 -7 -6 -6 -5 -------- Run | Yrd Mat Min Mat Mat Fac Fac DSF Fac Hostile Shots Fired 695 | . 15 3 13 236 56 . 100 272 Missed 214 | . 4 2 8 78 21 . 37 64 Hits 481 | . 11 1 5 158 35 . 63 208 Melee 17 | . . . . 2 . . 15 . Projectile 464 | . 11 1 5 156 35 . 48 208 AOE 4 | . . . . 2 . . 2 . Critical Strikes 22 | . . . . 8 . . 6 8 Part Disruptions 1 | . . . . . . . . 1 Damage Taken 8673 | . 90 24 57 2069 529 . 1765 4139 Core 2434 | . . 6 . 434 374 . 612 1008 Absorbed by Shields 248 | . . . . 180 . . . 68 Ignored by Resistances 74 | . . . . . . . . 74 Core Remaining (%) 65 | 100 . 97 100 21 46 . 28 . Volleys Fired 169 | 7 11 2 2 80 . . 23 44 Largest 3 | 2 2 2 1 2 . . 2 3 Hottest 270 | 80 80 80 100 126 . . 180 270 Shots Fired 289 | 14 22 4 2 102 . . 39 106 Gun 135 | 14 22 4 . 95 . . . . Cannon 145 | . . . . . . . 39 106 Launcher 5 | . . . . 5 . . . . Special 4 | . . . 2 2 . . . . Kinetic 43 | . . . . 43 . . . . Thermal 193 | . . . 2 47 . . 39 105 Explosive 5 | . . . . 5 . . . . Electromagnetic 48 | 14 22 4 . 7 . . . 1 Robot Hit Streak 12 | 3 3 3 . 9 . . 11 12 Robot Miss Streak 7 | 1 7 1 . 3 . . 2 3 Penetration Max 1 | . . . . 1 . . . . Secondary Targets 1 | . 1 . . . . . . . Max Gunslinging Chain 1 | . 1 . . . . . . . Shots Hit Robots 176 | 9 7 3 6 60 2 . 30 59 Core Hits 93 | 4 4 4 . 37 1 . 10 33 Critical Kills 6 | . . . . . . . . 6 Critical Parts Destroyed 1 | . . . . . . . 1 . Critical Strikes 8 | . . . . 1 . . 1 6 Burn 1 | . . . . 1 . . . . Meltdown 6 | . . . . . . . . 6 Smash 1 | . . . . . . . 1 . Melee Attacks 19 | . . . 7 . 11 . 1 . Impact 1 | . . . . . . . 1 . Slashing 11 | . . . . . 11 . . . Piercing . | . . . . . . . . . Sneak Attacks 6 | . . . 5 . 1 . . . Combat Hostiles . | . . . . . . . . . Follow-up Attacks . | . . . . . . . . . Damage Inflicted 5855 | 136 92 107 . 1933 81 . 1043 2463 Guns 1554 | 111 92 26 . 1325 . . . . Cannons 3016 | . . . . . . . 983 2033 Explosions 1124 | 25 . 73 . 607 . . . 419 Melee 135 | . . . . . 75 . 60 . Ramming 26 | . . 8 . 1 6 . . 11 Kinetic 717 | . . . . 717 . . . . Thermal 3549 | 25 . 73 . 455 . . 983 2013 Explosive 1026 | . . . . 607 . . . 419 Electromagnetic 402 | 111 92 26 . 153 . . . 20 Impact 60 | . . . . . . . 60 . Slashing 75 | . . . . . 75 . . . Piercing . | . . . . . . . . . Highest Corruption 1 | . . . . . . . . 1 Average Corruption 1 | . . . . . . . . 1 Corruption Purged . | . . . . . . . . . Corruption Blocked 2 | . . . . . . . . 2 Effects 3 | . . . . . . . . 3 Parts Fused 1 | . . . . . . . . 1 Data Loss (minor) 1 | . . . . . . . . 1 Alerts 1 | . . . . . . . . 1 Overload Shots . | . . . . . . . . . Overflow Damage 317 | . . . . 42 10 . 71 194 Projectiles 30 | . . . . . . . 11 19 Explosions 217 | . . . . 42 . . . 175 Melee 70 | . . . . . 10 . 60 . Knockbacks . | . . . . . . . . . Impact . | . . . . . . . . . Kinetic . | . . . . . . . . . Secondary . | . . . . . . . . . Self-Inflicted Damage 579 | . . 18 . 87 3 . . 471 Shots 11 | . . 1 . 3 . . . 7 Rammed 2 | . . . . . 1 . . 1 Targets Rammed 4 | . . 1 . 1 1 . . 1 Kicked 2 | . . 1 . 1 . . . . Crushed . | . . . . . . . . . Highest Temperature 1322 | 54 162 30 20 489 . . 1322 608 Average Temperature 208 | 27 72 17 10 150 . . 379 225 Received Heat Transfer 1112 | . . . 21 669 . . . 422 Effects 65 | . . . . 5 . . 28 32 Shutdowns 14 | . . . . 3 . . 1 10 Energy Bleed 4 | . . . . . . . 1 3 Interference 6 | . . . . . . . 3 3 Matter Decay 9 | . . . . . . . 2 7 Short Circuit 8 | . . . . 2 . . 4 2 Damage (minor) 6 | . . . . . . . 3 3 Damage (major) 14 | . . . . . . . 12 2 Damage (core) 4 | . . . . . . . 2 2 Siege Activations . | . . . . . . . . . Martial Activations . | . . . . . . . . . Shielding Activations . | . . . . . . . . . Robots Disrupted . | . . . . . . . . . Combat Hostiles . | . . . . . . . . . Robots Corrupted 2 | . . . . 1 . . 1 . Combat Hostiles 2 | . . . . 1 . . 1 . Parts Fried 4 | 1 1 . . . . . 2 . Impact Corruptions 2 | . . . . . . . 2 . Robots Melted 7 | . . . . . . . 1 6 Combat Hostiles 6 | . . . . . . . 1 5 Parts Melted 21 | . . . . . . . 1 20 Heat Transferred 5787 | 50 . 200 . 925 . . 1550 3062 Parts Sabotaged . | . . . . . . . . . Parts Stolen . | . . . . . . . . . Parts Stripped . | . . . . . . . . . Power Chain Reactions 3 | 1 . 1 . 1 . . . . Alert | -11 -10 -10 -9 -8 -7 -6 -6 -5 ------- Run | Yrd Mat Min Mat Mat Fac Fac DSF Fac Maximum Alert Level 1 | . . . . 1 . . 1 1 Low Security (%) 73 | 100 100 100 100 65 100 100 92 38 Level 1 26 | . . . . 34 . . 7 61 Level 2 . | . . . . . . . . . Level 3 . | . . . . . . . . . Level 4 . | . . . . . . . . . Level 5 . | . . . . . . . . . High Security . | . . . . . . . . . Max Security . | . . . . . . . . . Sterilizations 1 | . . . . . . . 1 . Peak Influence 365 | 5 80 100 142 308 111 11 215 365 Initial 112 | . . 11 . 55 111 11 10 112 Average 125 | 1 31 17 66 168 47 11 121 221 Influence Increases 2432 | 15 90 105 212 790 100 4 245 871 Destroy 0b10 Robot/C 1040 | . 60 60 . 360 . . 200 360 Destroy 0b10 Robot/NC 130 | 15 5 5 . 45 5 . . 55 Destroy Leader 214 | . 10 10 . 96 . . 30 68 Successful Hack 25 | . . . . 11 5 4 . 5 Disable Machine 240 | . . 15 . 45 . . . 180 Destroy Structure 243 | . . 15 2 38 . . . 188 Partial Spotted 75 | . . . 15 15 30 . . 15 Lose Combat Pursuer 465 | . 15 . 195 180 60 . 15 . Influence Decreases 2125 | 15 60 135 80 677 320 14 45 779 Entered New Map 352 | . . 19 . 77 134 14 5 103 Time Decay 1247 | 15 60 116 70 410 160 . . 416 Lost Part 526 | . . . 10 190 26 . 40 260 Squads Dispatched 26 | . 3 1 6 6 3 . 3 4 Investigation 3 | . . 1 1 1 . . . . Extermination 2 | . . . . . 1 . . 1 Reinforcement 20 | . 3 . 5 4 2 . 3 3 Assault . | . . . . . . . . . Garrison 1 | . . . . 1 . . . . Intercept . | . . . . . . . . . Searches Triggered . | . . . . . . . . . Construction Impeded 1 | . . . . . . . . 1 Haulers Reinforced . | . . . . . . . . . Active Scanning Responses . | . . . . . . . . . Cargo Convoy Interrupts 1 | . . . . . . . . 1 Stealth | -11 -10 -10 -9 -8 -7 -6 -6 -5 --------- Run | Yrd Mat Min Mat Mat Fac Fac DSF Fac Distress Signals 8 | . 2 . 2 4 . . . . Communications Jammed . | . . . . . . . . . Distress Signals . | . . . . . . . . . Times Spotted 133 | . 5 3 21 46 9 . 13 36 Peak Tracking Total 10 | . 3 3 9 7 5 . 4 10 Tactical Retreats 14 | . 1 . 6 5 1 . 1 . Traps | -11 -10 -10 -9 -8 -7 -6 -6 -5 ------- Run | Yrd Mat Min Mat Mat Fac Fac DSF Fac Traps Triggered 2 | . . . 1 . . . 1 . Indirectly . | . . . . . . . . . Trap Hack Attempts . | . . . . . . . . . Triggered . | . . . . . . . . . Disarmed . | . . . . . . . . . Reprogrammed . | . . . . . . . . . Reused . | . . . . . . . . . Traps Extracted . | . . . . . . . . . Installed . | . . . . . . . . . Triggered . | . . . . . . . . . Machines | -11 -10 -10 -9 -8 -7 -6 -6 -5 ---------- Run | Yrd Mat Min Mat Mat Fac Fac DSF Fac Machines Disabled 16 | . . 1 . 3 . . . 12 Max in Single Turn 4 | . . 1 . 1 . . . 4 Machines Repaired . | . . . . . . . . . Machines Dismantled . | . . . . . . . . . Machines Sabotaged . | . . . . . . . . . Overloaded Fab Kills . | . . . . . . . . . Hacking | -11 -10 -10 -9 -8 -7 -6 -6 -5 --------- Run | Yrd Mat Min Mat Mat Fac Fac DSF Fac Machines Accessed 15 | . 1 1 4 4 2 1 . 2 Terminals 9 | . 1 . 2 3 1 1 . 1 Fabricators 1 | . . . . . . . . 1 Repair Stations . | . . . . . . . . . Recycling Units 2 | . . . 1 . 1 . . . Scanalyzers 2 | . . . 1 1 . . . . Garrison Access . | . . . . . . . . . Total Hacks 35 | . 4 1 9 14 2 1 . 4 Successful 19 | . 3 1 3 8 2 1 . 1 Failed 15 | . 1 . 6 5 . . . 3 Catastrophic . | . . . . . . . . . Database Lockouts 1 | . . . . 1 . . . . Manual 5 | . . . 1 3 1 . . . Terminals 22 | . 4 . 5 9 1 1 . 2 Fabricators 2 | . . . . . . . . 2 Repair Stations . | . . . . . . . . . Recycling Units 2 | . . . 1 . 1 . . . Scanalyzers 8 | . . . 3 5 . . . . Garrison Access . | . . . . . . . . . Terminal Hacks 11 | . 3 1 . 4 1 1 . 1 Record 1 | . . . . 1 . . . . Open Door 1 | . . 1 . . . . . . Open DSF 3 | . . . . . 1 1 . 1 Emergency Access Points 1 | . . . . 1 . . . . Locate Traps 1 | . 1 . . . . . . . Dispatch Records 1 | . 1 . . . . . . . Maintenance Status 1 | . . . . 1 . . . . Transport Status 1 | . . . . 1 . . . . Zone Layout 1 | . 1 . . . . . . . Fabricator Hacks . | . . . . . . . . . Repair Station Hacks . | . . . . . . . . . Recycling Unit Hacks 2 | . . . 1 . 1 . . . Report Inventory 2 | . . . 1 . 1 . . . Scanalyzer 6 | . . . 2 4 . . . . Retrieve Study 6 | . . . 2 4 . . . . Garrison Access Hacks . | . . . . . . . . . Unauthorized Hacks . | . . . . . . . . . Terminals . | . . . . . . . . . Fabricators . | . . . . . . . . . Repair Stations . | . . . . . . . . . Recycling Units . | . . . . . . . . . Scanalyzers . | . . . . . . . . . Garrison Access . | . . . . . . . . . Data Cores Recovered . | . . . . . . . . . Used . | . . . . . . . . . Hacking Detections 11 | . 1 . 4 4 1 . . 1 Full Trace Events 1 | . . . . 1 . . . . Feedback Events . | . . . . . . . . . Feedback Blocked . | . . . . . . . . . Robot Schematics Acquired . | . . . . . . . . . Robots Built . | . . . . . . . . . Authchips . | . . . . . . . . . Time . | . . . . . . . . . Total Robot Build Rating . | . . . . . . . . . Part Schematics Acquired . | . . . . . . . . . Parts Built . | . . . . . . . . . Authchips . | . . . . . . . . . Time . | . . . . . . . . . Total Part Build Rating . | . . . . . . . . . Part Studies Acquired 4 | . . . . 4 . . . . Parts Repaired . | . . . . . . . . . Time . | . . . . . . . . . Parts Recycled . | . . . . . . . . . Recycled Matter . | . . . . . . . . . Retrieved Matter . | . . . . . . . . . Retrieved Components . | . . . . . . . . . Parts Scanalyzed . | . . . . . . . . . Part Schematics Acquired . | . . . . . . . . . Parts Damaged . | . . . . . . . . . Bothacking | -11 -10 -10 -9 -8 -7 -6 -6 -5 ------------ Run | Yrd Mat Min Mat Mat Fac Fac DSF Fac Used RIF Installer . | . . . . . . . . . Robots Hacked 2 | . . . 2 . . . . . Non-combat 2 | . . . 2 . . . . . Combat . | . . . . . . . . . Robot Hacks Applied 3 | . . . 3 . . . . . parse_system 1 | . . . 1 . . . . . find_station 1 | . . . 1 . . . . . check_alert 1 | . . . 1 . . . . . Relay Couplers Released . | . . . . . . . . . Fabnet Peak Effective % . | . . . . . . . . . Robots Rewired . | . . . . . . . . . Allies Hacked . | . . . . . . . . . Hacks Repelled . | . . . . . . . . . Allies | -11 -10 -10 -9 -8 -7 -6 -6 -5 -------- Run | Yrd Mat Min Mat Mat Fac Fac DSF Fac Total Allies . | . . . . . . . . . Largest Group . | . . . . . . . . . Highest-Rated Group . | . . . . . . . . . Highest-Rated Ally . | . . . . . . . . . Initial Warlord ECA Mod 9 | . . . . . . . . 9 Total Orders . | . . . . . . . . . Ally Attacks . | . . . . . . . . . Total Damage . | . . . . . . . . . Kills . | . . . . . . . . . Allies Corrupted . | . . . . . . . . . Allies Melted . | . . . . . . . . . Intel | -11 -10 -10 -9 -8 -7 -6 -6 -5 ------- Run | Yrd Mat Min Mat Mat Fac Fac DSF Fac Active Infowar (turns) 3021 | 79 185 615 193 642 197 . 101 1009 Optics 1703 | . . . 164 234 195 . 101 1009 Sensors 827 | . . 218 193 416 . . . . Terrain 887 | 79 185 397 . 226 . . . . Seismic 174 | . . . . . 174 . . . ECM 2 | . . . . . 2 . . . Robot Analysis Total . | . . . . . . . . . Derelict Logs Recovered 2 | . . 2 . . . . . . Drone Launches . | . . . . . . . . . Drone Recoveries . | . . . . . . . . . Exploration | -11 -10 -10 -9 -8 -7 -6 -6 -5 ------------- Run | Yrd Mat Min Mat Mat Fac Fac DSF Fac Turns Passed 3793 | 114 185 615 193 984 362 4 326 1010 Spaces Moved 2967 | 51 121 599 465 541 513 11 183 483 Core 241 | . . . . 11 228 . . 2 Treads 317 | . . . . . . . 106 211 Legs 693 | 51 121 420 . 85 . . . 16 Wheels 605 | . . . . 215 136 . . 254 Hover 72 | . . . . . . . 72 . Flight 1039 | . . 179 465 230 149 11 5 . Fastest Speed 28 | 120 120 34 32 28 31 31 31 50 Average Speed 95 | 120 120 95 32 118 56 31 117 158 Slowest Speed 1150 | 120 120 285 34 330 150 31 240 1150 Overloaded Moves . | . . . . . . . . . Propulsion Burnouts . | . . . . . . . . . Robots Hopped 5 | . . . 2 3 . . . . Potential Cave-ins . | . . . . . . . . . Cave-ins Triggered . | . . . . . . . . . Exploration Rate (%) 44 | 3 24 90 53 64 14 . 92 17 Regions Visited 8 Branch Regions 1 Pre-discovered Areas . | . . . . . . . . . Known Exits Taken 2 | . . . 1 . . 1 . . Unknown Exits Taken 5 | 1 1 1 . 1 1 . . . Scrap Searched 1 | . . 1 . . . . . . Spaces Dug 14 | . . . 2 12 . . . . Terrain Destroyed 155 | 4 . 15 2 34 . . . 100 Melee . | . . . . . . . . . Projectile 30 | . . . 2 2 . . . 26 AOE 125 | 4 . 15 . 32 . . . 74 Terrain Rammed . | . . . . . . . . . Walls Destroyed . | . . . . . . . . . Machines Disabled . | . . . . . . . . . Actions | -11 -10 -10 -9 -8 -7 -6 -6 -5 --------- Run | Yrd Mat Min Mat Mat Fac Fac DSF Fac Total 3597 | 90 139 638 497 771 562 10 253 637 Wait 172 | 25 2 9 . 79 6 . . 51 Move 2949 | 50 120 598 460 534 512 10 182 483 Hop 5 | . . . 2 3 . . . . Pick Up 67 | 1 2 8 9 16 11 . 9 11 Fast Attach 62 | 1 1 2 3 16 6 . 17 16 Attach 36 | 1 1 . 2 7 10 . 3 12 Detach 16 | 1 1 . 1 4 1 . 3 5 Swap 32 | 1 . 5 4 13 . . 3 6 Drop 65 | 3 1 13 7 18 4 . 11 8 Fire 169 | 7 11 2 2 80 . . 23 44 Melee 19 | . . . 7 . 11 . 1 . Ram 2 | . . . . . 1 . . 1 Kick 2 | . . 1 . 1 . . . . Crush . | . . . . . . . . . Escape Stasis . | . . . . . . . . . Rewire 1 | . . . . . . . 1 . Trap . | . . . . . . . . . Miscellaneous . | . . . . . . . . . Route ------- -11/Scrapyard -10/Materials -10/Mines -9/Materials (discovered 3 exits: *Mat / Min / Sto) -8/Materials (discovered 2 exits: *Fac x2) -7/Factory -6/Factory -6/DSF -5/Factory History --------- Turn | Location | Event 1 | -11/Scrapyard | Discovered new exit (range 3) 115 | -11/Scrapyard | Entered Materials 171 | -10/Materials | Discovered new exit (range 12) 300 | -10/Materials | Entered Mines 304 | -10/Mines | Build established: Mutant 305 | -10/Mines | Met a Derelict bent on vengeance 425 | -10/Mines | Learned 4 Materials zone layouts 693 | -10/Mines | Found a damaged Exp. Sensor Array with a note attached 696 | -10/Mines | Found Prototype Device 697 | -10/Mines | Identified Exp. Sensor Array 722 | -10/Mines | Met a Derelict shopkeep closing up shop 890 | -10/Mines | Discovered new exit (range 5) 915 | -10/Mines | Entered Materials 915 | -9/Materials | Evolved 2 slots: Propulsion x1, Utility x1 916 | -9/Materials | Identified exit to Mines 917 | -9/Materials | Identified exit to Storage 917 | -9/Materials | Identified exit to Materials 1108 | -9/Materials | Entered another Materials area 1108 | -8/Materials | Evolved 2 slots: Propulsion x1, Utility x1 1240 | -8/Materials | Discovered new exit (range 14) 1246 | -8/Materials | Central database locked down 1369 | -8/Materials | Lost 3 parts (2n1u) 2013 | -8/Materials | Garrison activated, responded to threat 2047 | -8/Materials | Lost 4 parts (2n1u1w) 2056 | -8/Materials | Core integrity fell below 50% 2076 | -8/Materials | Discovered new exit (range 16) 2085 | -8/Materials | Released all parts (3) 2092 | -8/Materials | Entered Factory 2092 | -7/Factory | Evolved 2 slots: Utility x2 2116 | -7/Factory | Lost 6 parts (1p3n2w) 2295 | -7/Factory | Released all parts (3) 2306 | -7/Factory | Core integrity fell below 50% 2405 | -7/Factory | Discovered new exit (range 8) 2454 | -7/Factory | Entered another Factory area 2454 | -6/Factory | Evolved 2 slots: Power x1, Utility x1 2458 | -6/Factory | Identified exit to DSF 2458 | -6/Factory | Entered DSF 2501 | -6/DSF | Additional patrols routed to DSF 2682 | -6/DSF | Sterilization system engaged 2702 | -6/DSF | Ambient heat levels rising (+10) 2717 | -6/DSF | Ambient heat levels rising (+10) 2732 | -6/DSF | Ambient heat levels rising (+10) 2747 | -6/DSF | Ambient heat levels rising (+10) 2748 | -6/DSF | Core integrity fell below 50% 2756 | -6/DSF | Discovered new exit (range 18) 2762 | -6/DSF | Ambient heat levels rising (+10) 2777 | -6/DSF | Ambient heat levels rising (+10) 2784 | -6/DSF | Entered Factory 2784 | -5/Factory | Evolved 2 slots: Utility x1, Weapon x1 2855 | -5/Factory | Lost 3 parts (1n1u1w) 3327 | -5/Factory | Lost 12 parts (1p4n4u3w) 3725 | -5/Factory | Core integrity fell below 50% 3772 | -5/Factory | Lost 3 parts (1p1n1u) 3783 | -5/Factory | Cargo convoy interrupted 3787 | -5/Factory | Core integrity fell below 20% 3793 | -5/Factory | Released all parts (11) 3794 | -5/Factory | Destroyed by X-72 Disruptor with Arc Projector Last Messages --------------- 03791_ Carbon-fiber Leg destroyed. 03791_ Imp. Corruption Screen intercepted 1% system corruption. 03791_ Identified Cld. Plasma Rifle. 03791_ Penetrated by Slug. 03792_ Slug penetrates Wall. [Achievement: Hydra] 03792_ Carbon-fiber Leg destroyed. 03793_ M-28 Smith repairs H-66 Slayer. 03793_ Penetrated by Slug. 03793_ Released Targeting Computer. 03793_ Released Visual Processing Unit. 03793_ Released Target Analyzer. 03793_ Released Lrg. Storage Unit. 03793_ Released Imp. Corruption Screen. 03793_ Released Mic. Fission Core. 03793_ Released Carbon-fiber Leg. 03793_ Released Variable Charge Gun. 03793_ Released Hvy. Phase Cannon. 03793_ Released Cld. Plasma Rifle. 03793_ Dropped Mic. Fission Core. Map ----- +----------------------------------------------------+ | ?????????# #= #?????????????????? | | ?????????# =# [ #?????????????????? | | ?????????# """" !+% ###########???????? | | ?????????# """" ### #### # #???????? | | ?????????# """" ### #??# # #???????? | | ?????????# """" #?# #??# # #???????? | | ?????????############+#### # #???????? | | ???????????????# # # #???????? | | ???????????????????" """ + + """ """ #???????? | | ???????????????????" """ # # """ """ #???????? | | ?????????????????????????# # """ """ #???????? | | ?????????????????????????# ############??????? | | ?????????????????????????# ????? | | ?????????????????????????# ????? | | ?????????????????????????# ????? | | ??????????????????????#+## |=! ????? | | ??????????????????????# ## *%= ????? | | ??????????????#####???# ####=####"#+##"#####?????? | | ??????????????# ??# #?##%# #??????? | | ??????????????# ""??# #??"=# #??????? | | ??????????????# R"## ##?"%# #??????? | | ??????????????# = "" # ###%# #??????? | | ??????????????# + " [+ #??????? | | ??????????????# #[[ ##### #??????? | | ??????????????########;;###p*=! + / ???? | | ?????????????????### *!@!p[mm[ ##?????? | | ????????????????# ; [[xxh[% #??????? | | ????????????????#### ][[=! #??????? | | ???????????????????# *! hh# #??????? | | ???????????????????# *=* # #??????? | | ???????????????????# * ####+#########??????? | | ???????????????????# #????#??????????????? | | ???????????????????# #???????????????????? | | ???????????????????###########???????????????????? | | ?????????????????????????????????????????????????? | | ?????????????????????????????????????????????????? | | ?????????????????????????????????????????????????? | | ?????????????????????????????????????????????????? | | ?????????????????????????????????????????????????? | | ?????????????????????????????????????????????????? | | ?????????????????????????????????????????????????? | | ?????????????????????????????????????????????????? | | ?????????????????????????????????????????????????? | | ?????????????????????????????????????????????????? | | ?????????????????????????????????????????????????? | | | | | | | | | | | +----------------------------------------------------+ Best States ------------- Heat Dissipation 59 Energy Generation 31 Energy Capacity 1900 Matter Stores 300 Matter Capacity 300 Sight Range 18 Robot Scan Range 20 Terrain Scan Range 16 Terrain Scan Density 410 ECM Strength 2 Corruption Block 45 Armor Coverage 600 Resistance: EX 50 Weapon Cycling 30 Phase Shifting 5 Evasion (%) 71 Targeting Accuracy 10 Target Analysis 5 Recoil Reduction 4 Offensive Hacking 10 Item Schematics ----------------- None Robot Schematics ------------------ None Fabricated ------------ Nothing Repaired ---------- Nothing Studied --------- Cesium-ion Thruster | -8/Materials | Hacked Flight Unit | -8/Materials | Hacked Ion Engine | -8/Materials | Hacked Deuterium Engine | -8/Materials | Hacked Alien Tech Used ----------------- None Achievements -------------- Heavy Suspicion Hey, That's Mine! Hot Goods Hydra Jackpot Junior Dev Live, Flee, And Rebuild Not Today, Chutes Well Done Window Shopping Challenges ------------ None Game ------ Seed FieldthrustBattleFilter Manual? 0 Play Time 01:10:21 Cumulative 19.4 hours Start 2025.10.28 @ 14:51:57 End 2025.10.28 @ 16:11:19 Sessions 2 Manual Loads 0 Difficulty Rogue Special Mode None Game No. 32 Rogue 32 Adventurer 0 Explorer 0 Win Type - Total 0 Types 0/0/0/0/0/0/0/0/0/0 Lore% 14 Gallery% 26 Achievement% 18 Wizard Run 0 Options --------- Layout 0 ASCII 0 Keyboard 1 Movement Numpad Keybinds 0 Fullscreen 1 Font 24/Smallcaps Map View 76x50 Zoom Use 0% Tactical HUD 1 Map Filters NONE Filters NONE Steam 1 RUN: caff9b0c-0390-4056-938f-532ea0a9ea80